lending/lending_fUSD_20250131
["ID","MTS","AMOUNT","RATE_DAILY","PERIOD"]
[351144519,1738350640806,-500.0,0.00016747,2]
[351144521,1738350640815,-500.0,0.00016747,2]
[351144523,1738350640824,-500.0,0.00016747,2]
[351144525,1738350640833,-197.99824652,0.00016747,2]
[351144528,1738350640856,-302.00175348,0.00016747,2]
[351144530,1738350640865,-500.0,0.00016747,2]
[351144532,1738350640874,-500.0,0.00016747,2]
[351144534,1738350640884,-500.0,0.00016747,2]
[351144536,1738350640893,-500.0,0.00016747,2]
[351144538,1738350640902,-500.0,0.00016747,2]
[351144540,1738350640911,-280.99824652,0.00016747,2]
[351144543,1738350640927,-228.50826218,0.00016747,2]
[351144544,1738350640936,-500.0,0.00016747,2]
[351144546,1738350640946,-500.0,0.00016747,2]
[351144549,1738350640955,-476.32578284,0.00016747,2]
[351144723,1738350643034,-23.67421716,0.00016747,2]
[351144725,1738350643043,-500.0,0.00016747,2]
[351144727,1738350643053,-500.0,0.00016747,2]
[351144729,1738350643062,-500.0,0.00016747,2]
[351144731,1738350643072,-500.0,0.00016747,2]
[351144733,1738350643081,-500.0,0.00016747,2]
[351144735,1738350643091,-500.0,0.00016747,2]
[351144737,1738350643100,-500.0,0.00016747,2]
[351144739,1738350643112,-552.20508024,0.00016747,2]
[351144741,1738350643121,-500.0,0.00016747,2]
[351144743,1738350643131,-500.0,0.00016747,2]
[351144745,1738350643140,-500.0,0.00016747,2]
[351144747,1738350643149,-56.3707026,0.00016747,2]
[351144749,1738350643161,-443.6292974,0.00016747,2]
[351144751,1738350643170,-500.0,0.00016747,2]
[351144753,1738350643179,-46.95205558,0.00016747,2]
[351144776,1738350643395,-453.04794442,0.00016747,2]
[351144779,1738350643406,-440.98184518,0.00016747,2]
[351144781,1738350643418,-59.01815482,0.00016747,2]
[351144783,1738350643427,-500.0,0.00016747,2]
[351144785,1738350643436,-203.50461953,0.00016747,2]
[351144818,1738350645953,-296.49538047,0.00016747,2]
[351144819,1738350645963,-500.0,0.00016747,2]
[351144820,1738350645973,-313.06693112,0.00016747,2]
[351144821,1738350645982,-577.69,0.00016747,2]
[351144822,1738350645992,-500.0,0.00016747,2]
[351144823,1738350646001,-500.0,0.00016747,2]
[351144824,1738350646012,-504.78,0.00016747,2]
[351144825,1738350646021,-500.0,0.00016747,2]
[351144826,1738350646032,-500.0,0.00016747,2]
[351144827,1738350646042,-500.0,0.00016747,2]
[351144828,1738350646051,-500.0,0.00016747,2]
[351144829,1738350646061,-643.07,0.00016747,2]
[351144830,1738350646071,-500.0,0.00016747,2]
[351144831,1738350646080,-500.0,0.00016747,2]
[351144832,1738350646089,-500.0,0.00016747,2]
[351144833,1738350646098,-500.0,0.00016747,2]
[351144834,1738350646110,-500.0,0.00016747,2]
[351144835,1738350646119,-500.0,0.00016747,2]
[351144836,1738350646129,-500.0,0.00016747,2]
[351144837,1738350646139,-500.0,0.00016747,2]
[351144838,1738350646148,-449.89768841,0.00016747,2]
[351144839,1738350646160,-4.01696327,0.00016747,2]
[351144840,1738350646169,-502.27725896,0.00016747,2]
[351144841,1738350646179,-129.90577777,0.00016747,2]
[351144842,1738350646190,-370.09422223,0.00016747,2]
[351144843,1738350646199,-500.0,0.00016747,2]
[351144844,1738350646208,-500.0,0.00016747,2]
[351144845,1738350646217,-179.90577777,0.00016747,2]
[351144846,1738350646228,-320.09422223,0.00016747,2]
[351144847,1738350646238,-500.0,0.00016747,2]
[351144848,1738350646248,-500.0,0.00016747,2]
[351144849,1738350646257,-500.0,0.00016747,2]
[351144850,1738350646266,-229.08384077,0.00016747,2]
[351144851,1738350646284,-288.78213341,0.00016747,2]
[351144852,1738350646294,-500.0,0.00016747,2]
[351144853,1738350646303,-500.0,0.00016747,2]
[351144855,1738350646313,-500.0,0.00016747,2]
[351144857,1738350646323,-500.0,0.00016747,2]
[351144858,1738350646332,-500.0,0.00016747,2]
[351144859,1738350646342,-500.0,0.00016747,2]
[351144860,1738350646353,-500.0,0.00016747,2]
[351144861,1738350646366,-500.0,0.00016747,2]
[351144862,1738350646376,-500.0,0.00016747,2]
[351144863,1738350646386,-503.9153114,0.00016747,2]
[351144864,1738350646396,-500.0,0.00016747,2]
[351144865,1738350646405,-500.0,0.00016747,2]
[351144866,1738350646415,-500.0,0.00016747,2]
[351144867,1738350646425,-500.0,0.00016747,2]
[351144868,1738350646434,-500.0,0.00016747,2]
[351144869,1738350646444,-500.0,0.00016747,2]
[351144870,1738350646454,-560.13,0.00016747,2]
[351144871,1738350646463,-500.0,0.00016747,2]
[351144872,1738350646473,-503.82426891,0.00016747,2]
[351144873,1738350646482,-408.34828628,0.00016747,2]
[351144874,1738350646500,-500.0,0.00016746,2]
[351144875,1738350646509,-91.65171372,0.00016747,2]
[351144877,1738350646519,-500.0,0.00016747,2]
[351144878,1738350646528,-204.25828628,0.00016747,2]
[351144879,1738350646539,-295.74171372,0.00016747,2]
[351144880,1738350646549,-500.0,0.00016747,2]
[351144881,1738350646559,-500.0,0.00016747,2]
[351144882,1738350646568,-500.0,0.00016747,2]
[351144883,1738350646578,-505.1674699,0.00016747,2]
[351144884,1738350646587,-500.0,0.00016747,2]
[351144885,1738350646596,-500.0,0.00016747,2]
[351144886,1738350646608,-170.36306381,0.00016747,2]
[351144887,1738350646617,-500.0,0.00016747,2]
[351144888,1738350646627,-500.0,0.00016747,2]
[351144889,1738350646636,-521.40194809,0.00016747,2]
[351144890,1738350646646,-500.0,0.00016747,2]
[351144891,1738350646656,-500.0,0.00016747,2]
[351144892,1738350646666,-500.0,0.00016747,2]
[351144893,1738350646676,-500.0,0.00016747,2]
[351144894,1738350646686,-500.0,0.00016747,2]
[351144895,1738350646696,-500.0,0.00016747,2]
[351144896,1738350646705,-500.0,0.00016747,2]
[351144897,1738350646714,-500.0,0.00016747,2]
[351144898,1738350646724,-500.0,0.00016747,2]
[351144899,1738350646733,-500.0,0.00016747,2]
[351144900,1738350646742,-500.0,0.00016747,2]
[351144901,1738350646752,-500.0,0.00016747,2]
[351144902,1738350646762,-500.0,0.00016747,2]
[351144903,1738350646771,-500.0,0.00016747,2]
[351144904,1738350646780,-500.0,0.00016747,2]
[351144905,1738350646790,-500.0,0.00016747,2]
[351144906,1738350646799,-500.0,0.00016747,2]
[351144907,1738350646809,-501.7174633,0.00016747,2]
[351144908,1738350646818,-500.0,0.00016747,2]
[351144909,1738350646828,-644.17290075,0.00016747,2]
[351144910,1738350646837,-500.0,0.00016747,2]
[351144911,1738350646847,-500.0,0.00016747,2]
[351144912,1738350646857,-500.0,0.00016747,2]
[351144913,1738350646866,-500.0,0.00016747,2]
[351144914,1738350646876,-500.0,0.00016747,2]
[351144915,1738350646886,-506.23,0.00016747,2]
[351144916,1738350646895,-500.0,0.00016747,2]
[351144917,1738350646905,-500.0,0.00016747,2]
[351144918,1738350646915,-500.0,0.00016747,2]
[351144919,1738350646924,-500.0,0.00016747,2]
[351144920,1738350646933,-503.34518047,0.00016747,2]
[351144921,1738350646944,-500.0,0.00016747,2]
[351144922,1738350646954,-500.0,0.00016747,2]
[351144923,1738350646963,-500.0,0.00016747,2]
[351144924,1738350646974,-329.37059665,0.00016747,2]
[351144925,1738350646984,-500.0,0.00016747,2]
[351144926,1738350646994,-500.0,0.00016747,2]
[351144927,1738350647004,-500.0,0.00016747,2]
[351144928,1738350647017,-500.0,0.00016747,2]
[351144929,1738350647027,-500.0,0.00016747,2]
[351144930,1738350647036,-500.0,0.00016747,2]
[351144931,1738350647046,-500.0,0.00016747,2]
[351144932,1738350647056,-507.62209191,0.00016747,2]
[351144933,1738350647066,-500.0,0.00016747,2]
[351144934,1738350647083,-500.0,0.00016747,2]
[351144935,1738350647093,-500.0,0.00016747,2]
[351144936,1738350647102,-500.0,0.00016747,2]
[351144937,1738350647115,-500.0,0.00016747,2]
[351144938,1738350647125,-500.0,0.00016747,2]
[351144939,1738350647134,-500.0,0.00016747,2]
[351144940,1738350647144,-500.0,0.00016747,2]
[351144941,1738350647154,-500.0,0.00016747,2]
[351144942,1738350647163,-500.0,0.00016747,2]
[351144943,1738350647173,-500.0,0.00016747,2]
[351144944,1738350647182,-512.47,0.00016747,2]
[351144945,1738350647191,-500.0,0.00016747,2]
[351144946,1738350647201,-431.9565255,0.00016747,2]
[351144947,1738350647210,-500.0,0.00016747,2]
[351144948,1738350647220,-247.69334205,0.00016747,2]
[351144949,1738350647229,-575.74,0.00016747,2]
[351144950,1738350647238,-500.0,0.00016747,2]
[351144951,1738350647248,-500.0,0.00016747,2]
[351144952,1738350647258,-500.0,0.00016747,2]
[351144953,1738350647267,-500.0,0.00016747,2]
[351144954,1738350647282,-500.0,0.00016747,2]
[351144955,1738350647292,-500.0,0.00016747,2]
[351144956,1738350647302,-500.0,0.00016747,2]
[351144957,1738350647312,-500.0,0.00016747,2]
[351144958,1738350647322,-500.0,0.00016747,2]
[351144959,1738350647332,-500.0,0.00016747,2]
[351144960,1738350647342,-500.0,0.00016747,2]
[351144961,1738350647352,-500.0,0.00016748,2]
[351144962,1738350647367,-500.0,0.00016748,2]
[351144963,1738350647377,-500.0,0.00016748,2]
[351144964,1738350647387,-307.78,0.00016748,2]
[351144965,1738350647397,-292.72,0.00016748,2]
[351144966,1738350647407,-500.0,0.00016748,2]
[351144967,1738350647416,-500.0,0.00016748,2]
[351144968,1738350647426,-192.67,0.00016748,2]
[351144969,1738350647437,-500.0,0.00016748,2]
[351144970,1738350647447,-168.689267,0.00016784,2]
[351144971,1738350647457,-625.15438585,0.00016785,2]
[351144972,1738350647467,-1007.0,0.000168,2]
[351144973,1738350647477,-165.965285,0.00016849,2]
[351144974,1738350647486,-184.870971,0.00016849,2]
[351144975,1738350647495,-500.0,0.00016883,2]
[351144976,1738350647505,-500.0,0.00016883,2]
[351144977,1738350647515,-500.0,0.00016883,2]
[351144978,1738350647525,-500.0,0.00016883,2]
[351144979,1738350647534,-1315.36,0.00016883,2]
[351144980,1738350647543,-500.0,0.00016883,2]
[351144981,1738350647553,-448.77734724,0.00016883,2]
[351144982,1738350647563,-500.0,0.00016883,2]
[351144983,1738350647573,-500.0,0.00016883,2]
[351144984,1738350647582,-500.0,0.00016883,2]
[351144985,1738350647591,-500.0,0.00016883,2]
[351144986,1738350647601,-500.0,0.00016883,2]
[351144987,1738350647614,-500.0,0.00016883,2]
[351144988,1738350647624,-500.0,0.00016883,2]
[351144989,1738350647633,-500.0,0.00016883,2]
[351144990,1738350647643,-500.0,0.00016883,2]
[351144991,1738350647652,-503.38,0.00016883,2]
[351144992,1738350647662,-500.0,0.00016883,2]
[351144993,1738350647671,-500.0,0.00016883,2]
[351144994,1738350647681,-1250.0,0.00016883,2]
[351144995,1738350647691,-500.0,0.00016883,2]
[351144996,1738350647700,-500.0,0.00016883,2]
[351144997,1738350647710,-500.0,0.00016883,2]
[351144998,1738350647719,-500.0,0.00016883,2]
[351144999,1738350647728,-500.0,0.00016883,2]
[351145000,1738350647738,-752.02,0.00016883,2]
[351145001,1738350647748,-500.0,0.00016883,2]
[351145002,1738350647757,-416.1,0.00016883,2]
[351145003,1738350647767,-500.0,0.00016883,2]
[351145004,1738350647776,-500.0,0.00016883,2]
[351145005,1738350647785,-500.0,0.00016883,2]
[351145006,1738350647794,-500.0,0.00016883,2]
[351145007,1738350647804,-500.0,0.00016883,2]
[351145008,1738350647813,-500.0,0.00016883,2]
[351145009,1738350647822,-500.0,0.00016883,2]
[351145010,1738350647832,-500.0,0.00016884,2]
[351145011,1738350647841,-500.0,0.00016884,2]
[351145012,1738350647850,-506.86458151,0.00016884,2]
[351145013,1738350647862,-500.0,0.00016884,2]
[351145014,1738350647871,-500.0,0.00016884,2]
[351145015,1738350647881,-500.0,0.00016884,2]
[351145016,1738350647890,-500.0,0.00016884,2]
[351145017,1738350647899,-500.0,0.00016884,2]
[351145018,1738350647910,-500.0,0.00016884,2]
[351145019,1738350647919,-500.0,0.00016884,2]
[351145020,1738350647929,-500.0,0.00016884,2]
[351145021,1738350647940,-500.0,0.00016884,2]
[351145022,1738350647950,-500.0,0.00016884,2]
[351145023,1738350647960,-500.0,0.00016884,2]
[351145024,1738350647971,-500.0,0.00016884,2]
[351145025,1738350647981,-500.0,0.00016884,2]
[351145026,1738350647991,-500.0,0.00016884,2]
[351145027,1738350648003,-500.0,0.00016884,2]
[351145028,1738350648012,-500.0,0.00016884,2]
[351145029,1738350648022,-500.0,0.00016884,2]
[351145030,1738350648031,-500.0,0.00016884,2]
[351145031,1738350648041,-500.0,0.00016884,2]
[351145032,1738350648050,-500.0,0.00016884,2]
[351145033,1738350648060,-500.0,0.00016884,2]
[351145034,1738350648070,-500.0,0.00016884,2]
[351145035,1738350648079,-611.11,0.00016884,2]
[351145036,1738350648089,-500.0,0.00016884,2]
[351145037,1738350648098,-500.0,0.00016884,2]
[351145038,1738350648109,-500.0,0.00016884,2]
[351145039,1738350648118,-500.0,0.00016884,2]
[351145040,1738350648128,-297.57,0.00016884,2]
[351145041,1738350648138,-305.58,0.00016884,2]
[351145042,1738350648147,-500.0,0.00016884,2]
[351145043,1738350648156,-436.64,0.00016884,2]
[351145044,1738350648166,-500.0,0.00016884,2]
[351145045,1738350648175,-649.65,0.00016884,2]
[351145046,1738350648185,-447.12,0.00016884,2]
[351145047,1738350648194,-480.53,0.00016884,2]
[351145048,1738350648204,-355.97,0.00016884,2]
[351145049,1738350648215,-541.19,0.00016884,2]
[351145050,1738350648225,-228.49,0.00016884,2]
[351145051,1738350648235,-500.0,0.00016884,2]
[351145052,1738350648245,-500.0,0.00016884,2]
[351145053,1738350648256,-500.0,0.00016884,2]
[351145054,1738350648265,-500.0,0.00016884,2]
[351145055,1738350648276,-500.0,0.00016884,2]
[351145056,1738350648287,-500.0,0.00016884,2]
[351145057,1738350648297,-500.0,0.00016884,2]
[351145058,1738350648307,-500.0,0.00016884,2]
[351145059,1738350648317,-500.0,0.00016884,2]
[351145060,1738350648326,-504.39813623,0.00016884,2]
[351145061,1738350648336,-500.0,0.00016884,2]
[351145062,1738350648346,-500.0,0.00016884,2]
[351145063,1738350648356,-500.0,0.00016884,2]
[351145064,1738350648366,-500.0,0.00016884,2]
[351145065,1738350648376,-500.0,0.00016884,2]
[351145066,1738350648388,-510.11343081,0.00016884,2]
[351145067,1738350648398,-500.0,0.00016884,2]
[351145068,1738350648407,-506.23,0.00016884,2]
[351145069,1738350648417,-500.0,0.00016884,2]
[351145070,1738350648427,-503.8234958,0.00016884,2]
[351145071,1738350648437,-500.0,0.00016884,2]
[351145072,1738350648447,-500.0,0.00016884,2]
[351145073,1738350648457,-500.0,0.00016884,2]
[351145074,1738350648467,-500.0,0.00016884,2]
[351145075,1738350648477,-500.0,0.00016884,2]
[351145076,1738350648486,-500.0,0.00016884,2]
[351145077,1738350648496,-500.0,0.00016884,2]
[351145078,1738350648506,-500.0,0.00016884,2]
[351145079,1738350648516,-500.0,0.00016884,2]
[351145080,1738350648526,-266.18,0.00016884,2]
[351145081,1738350648536,-500.0,0.00016884,2]
[351145082,1738350648546,-500.0,0.00016884,2]
[351145083,1738350648556,-500.0,0.00016884,2]
[351145084,1738350648569,-305.59,0.00016884,2]
[351145085,1738350648579,-500.0,0.00016884,2]
[351145086,1738350648589,-500.0,0.00016884,2]
[351145087,1738350648599,-607.78,0.00016884,2]
[351145088,1738350648612,-500.0,0.00016884,2]
[351145089,1738350648621,-500.0,0.00016884,2]
[351145090,1738350648630,-500.0,0.00016884,2]
[351145091,1738350648640,-500.0,0.00016884,2]
[351145092,1738350648651,-500.0,0.00016884,2]
[351145093,1738350648661,-500.0,0.00016884,2]
[351145094,1738350648671,-500.0,0.00016884,2]
[351145095,1738350648680,-500.0,0.00016884,2]
[351145096,1738350648689,-500.0,0.00016885,2]
[351145097,1738350648699,-257.34,0.00016885,2]
[351145098,1738350648707,-529.36329055,0.00016885,2]
[351145099,1738350648717,-500.0,0.00016885,2]
[351145100,1738350648726,-500.0,0.00016885,2]
[351145101,1738350648735,-1473.11066599,0.000169,2]
[351145102,1738350648744,-500.0,0.00016932,2]
[351145103,1738350648753,-650.0,0.00017,2]
[351145104,1738350648763,-500.0,0.0001702,2]
[351145105,1738350648773,-572.4062613,0.0001702,2]
[351145106,1738350648783,-500.0,0.0001702,2]
[351145107,1738350648792,-1315.36,0.0001702,2]
[351145108,1738350648802,-500.0,0.0001702,2]
[351145109,1738350648811,-500.0,0.0001702,2]
[351145110,1738350648821,-500.0,0.0001702,2]
[351145111,1738350648830,-500.0,0.0001702,2]
[351145112,1738350648839,-500.0,0.0001702,2]
[351145113,1738350648849,-500.0,0.0001702,2]
[351145114,1738350648860,-570.88,0.0001702,2]
[351145115,1738350648869,-414.91,0.0001702,2]
[351145116,1738350648879,-500.0,0.0001702,2]
[351145117,1738350648888,-231.05,0.0001702,2]
[351145118,1738350648897,-500.0,0.0001702,2]
[351145119,1738350648907,-500.0,0.0001702,2]
[351145120,1738350648917,-500.0,0.0001702,2]
[351145121,1738350648926,-1250.0,0.0001702,2]
[351145122,1738350648935,-500.0,0.0001702,2]
[351145123,1738350648945,-500.0,0.0001702,2]
[351145124,1738350648955,-602.86882801,0.0001702,2]
[351145125,1738350648965,-500.0,0.0001702,2]
[351145126,1738350648975,-752.02,0.0001702,2]
[351145127,1738350648984,-500.0,0.0001702,2]
[351145128,1738350648993,-500.0,0.0001702,2]
[351145129,1738350649003,-500.0,0.0001702,2]
[351145130,1738350649013,-500.0,0.0001702,2]
[351145131,1738350649023,-404.44,0.0001702,2]
[351145132,1738350649032,-390.5,0.0001702,2]
[351145133,1738350649042,-500.0,0.0001702,2]
[351145134,1738350649052,-476.0197845,0.0001702,2]
[351145135,1738350649062,-176.26285101,0.0001702,2]
[351145136,1738350649071,-500.0,0.00017021,2]
[351145137,1738350649081,-500.0,0.00017021,2]
[351145138,1738350649091,-500.0,0.00017021,2]
[351145139,1738350649100,-500.0,0.00017021,2]
[351145140,1738350649112,-516.08012037,0.00017021,2]
[351145141,1738350649121,-500.0,0.00017021,2]
[351145142,1738350649131,-500.0,0.00017021,2]
[351145143,1738350649141,-500.0,0.00017021,2]
[351145144,1738350649150,-500.0,0.00017021,2]
[351145145,1738350649160,-500.0,0.00017021,2]
[351145146,1738350649170,-500.0,0.00017021,2]
[351145147,1738350649179,-500.0,0.00017021,2]
[351145148,1738350649189,-500.0,0.00017021,2]
[351145149,1738350649199,-500.0,0.00017021,2]
[351145150,1738350649209,-500.0,0.00017021,2]
[351145151,1738350649219,-500.0,0.00017021,2]
[351145152,1738350649228,-500.0,0.00017021,2]
[351145153,1738350649238,-500.0,0.00017021,2]
[351145154,1738350649247,-500.0,0.00017021,2]
[351145155,1738350649257,-500.0,0.00017021,2]
[351145156,1738350649267,-500.0,0.00017021,2]
[351145157,1738350649278,-500.0,0.00017021,2]
[351145158,1738350649291,-500.0,0.00017021,2]
[351145159,1738350649301,-218.3,0.00017021,2]
[351145160,1738350649311,-155.85,0.00017021,2]
[351145161,1738350649323,-500.0,0.00017021,2]
[351145162,1738350649333,-500.0,0.00017021,2]
[351145163,1738350649342,-500.0,0.00017021,2]
[351145164,1738350649352,-500.0,0.00017021,2]
[351145165,1738350649366,-500.0,0.00017021,2]
[351145166,1738350649376,-500.0,0.00017021,2]
[351145167,1738350649387,-500.0,0.00017021,2]
[351145168,1738350649397,-500.0,0.00017021,2]
[351145169,1738350649407,-500.0,0.00017021,2]
[351145170,1738350649416,-500.0,0.00017021,2]
[351145171,1738350649426,-295.66250793,0.00017021,2]
[351145172,1738350649436,-500.0,0.00017021,2]
[351145173,1738350649445,-506.23,0.00017021,2]
[351145174,1738350649455,-500.0,0.00017021,2]
[351145175,1738350649465,-500.0,0.00017021,2]
[351145176,1738350649475,-500.0,0.00017021,2]
[351145177,1738350649484,-500.0,0.00017021,2]
[351145178,1738350649495,-500.0,0.00017021,2]
[351145179,1738350649505,-397.14770609,0.00017021,2]
[351145180,1738350649515,-500.0,0.00017021,2]
[351145181,1738350649525,-367.43741298,0.00017021,2]
[351145182,1738350649535,-500.0,0.00017021,2]
[351145183,1738350649545,-164.72007447,0.00017021,2]
[351145184,1738350649555,-500.0,0.00017021,2]
[351145185,1738350649566,-500.0,0.00017021,2]
[351145186,1738350649576,-500.0,0.00017021,2]
[351145187,1738350649586,-568.81,0.00017021,2]
[351145188,1738350649595,-601.45,0.00017021,2]
[351145189,1738350649605,-231.54,0.00017021,2]
[351145190,1738350649618,-243.06,0.00017021,2]
[351145191,1738350649628,-634.82,0.00017021,2]
[351145192,1738350649637,-500.0,0.00017022,2]
[351145193,1738350649647,-500.0,0.00017022,2]
[351145194,1738350649656,-500.0,0.00017022,2]
[351145195,1738350649676,-1473.11066598,0.00017072,2]
[351145196,1738350649686,-196.26867705,0.00017157,2]
[351145197,1738350649696,-500.0,0.00017157,2]
[351145198,1738350649706,-1315.36,0.00017157,2]
[351145199,1738350649715,-500.0,0.00017157,2]
[351145200,1738350649725,-500.0,0.00017157,2]
[351145201,1738350649735,-500.0,0.00017157,2]
[351145202,1738350649744,-528.2307167,0.00017157,2]
[351145203,1738350649753,-500.0,0.00017157,2]
[351145204,1738350649763,-500.0,0.00017157,2]
[351145205,1738350649772,-500.0,0.00017157,2]
[351145206,1738350649781,-500.0,0.00017157,2]
[351145207,1738350649791,-500.0,0.00017157,2]
[351145208,1738350649800,-1250.0,0.00017157,2]
[351145209,1738350649810,-168.97,0.00017157,2]
[351145210,1738350649819,-500.0,0.00017157,2]
[351145211,1738350649829,-500.0,0.00017157,2]
[351145212,1738350649840,-500.0,0.00017157,2]
[351145213,1738350649850,-752.02,0.00017157,2]
[351145214,1738350649863,-500.0,0.00017157,2]
[351145215,1738350649873,-500.0,0.00017157,2]
[351145216,1738350649883,-500.0,0.00017157,2]
[351145217,1738350649892,-553.54,0.00017157,2]
[351145218,1738350649902,-500.0,0.00017157,2]
[351145219,1738350649912,-500.0,0.00017158,2]
[351145220,1738350650059,-500.0,0.00017158,2]
[351145221,1738350650070,-500.0,0.00017158,2]
[351145222,1738350650080,-500.0,0.00017158,2]
[351145223,1738350650089,-500.0,0.00017158,2]
[351145224,1738350650098,-500.0,0.00017158,2]
[351145225,1738350650110,-500.0,0.00017158,2]
[351145226,1738350650120,-500.0,0.00017158,2]
[351145227,1738350650130,-500.0,0.00017158,2]
[351145228,1738350650139,-500.0,0.00017158,2]
[351145229,1738350650148,-500.0,0.00017158,2]
[351145230,1738350650159,-501.31405994,0.00017158,2]
[351145231,1738350650170,-500.0,0.00017158,2]
[351145232,1738350650179,-500.0,0.00017158,2]
[351145233,1738350650188,-500.0,0.00017158,2]
[351145234,1738350650198,-500.0,0.00017158,2]
[351145235,1738350650207,-500.0,0.00017158,2]
[351145236,1738350650217,-500.0,0.00017158,2]
[351145237,1738350650227,-496.13,0.00017158,2]
[351145238,1738350650237,-500.0,0.00017158,2]
[351145239,1738350650246,-500.0,0.00017158,2]
[351145240,1738350650256,-510.8693256,0.00017158,2]
[351145241,1738350650265,-577.53260292,0.00017158,2]
[351145242,1738350650275,-164.53,0.00017158,2]
[351145243,1738350650286,-500.0,0.00017158,2]
[351145244,1738350650296,-500.0,0.00017158,2]
[351145245,1738350650305,-500.0,0.00017158,2]
[351145246,1738350650316,-500.0,0.00017158,2]
[351145247,1738350650326,-506.23,0.00017158,2]
[351145248,1738350650336,-500.0,0.00017158,2]
[351145249,1738350650345,-521.79,0.00017158,2]
[351145250,1738350650355,-500.0,0.00017158,2]
[351145251,1738350650366,-278.29,0.00017158,2]
[351145252,1738350650377,-178.73,0.00017158,2]
[351145253,1738350650387,-500.0,0.00017158,2]
[351145254,1738350650398,-387.07,0.00017158,2]
[351145255,1738350650407,-166.15629871,0.00017159,2]
[351145256,1738350650417,-458.18,0.00017159,2]
[351145257,1738350650426,-250.0,0.00017177,2]
[351145258,1738350650436,-1473.11066598,0.00017245,2]
[351145259,1738350650446,-1271.0,0.00017284,2]
[351145260,1738350650455,-2021.0,0.00017284,2]
[351145261,1738350650465,-637.0,0.00017284,2]
[351145262,1738350650474,-568.0,0.00017284,2]
[351145263,1738350650484,-1308.407,0.00017284,2]
[351145264,1738350650494,-907.0,0.00017284,2]
[351145265,1738350650503,-1263.0,0.00017284,2]
[351145266,1738350650513,-782.0,0.00017284,2]
[351145267,1738350650522,-2952.0,0.00017284,2]
[351145268,1738350650531,-1323.0,0.00017284,2]
[351145269,1738350650541,-150.0,0.00017284,2]
[351145270,1738350650551,-538.0,0.00017284,2]
[351145271,1738350650561,-500.0,0.00017294,2]
[351145272,1738350650571,-1315.36,0.00017294,2]
[351145273,1738350650580,-500.0,0.00017294,2]
[351145274,1738350650591,-500.0,0.00017294,2]
[351145275,1738350650600,-500.0,0.00017294,2]
[351145276,1738350650612,-500.0,0.00017294,2]
[351145277,1738350650622,-260.86845749,0.00017294,2]
[351145278,1738350650631,-500.0,0.00017294,2]
[351145279,1738350650641,-587.47,0.00017294,2]
[351145280,1738350650651,-500.0,0.00017294,2]
[351145281,1738350650660,-1250.0,0.00017294,2]
[351145282,1738350650670,-500.0,0.00017294,2]
[351145283,1738350650680,-500.0,0.00017294,2]
[351145284,1738350650689,-500.0,0.00017294,2]